fUSD/lending_fUSD_20241226
["ID","MTS","AMOUNT","RATE_DAILY","PERIOD"]
[346733495,1735255834986,-1407.5,0.00012494,2]
[346733496,1735255834996,-1016.04,0.00012494,2]
[346733497,1735255835006,-500.0,0.00012494,2]
[346733498,1735255835016,-500.0,0.00012494,2]
[346733499,1735255835025,-500.0,0.00012494,2]
[346733500,1735255835035,-500.0,0.00012494,2]
[346733501,1735255835044,-500.0,0.00012494,2]
[346733502,1735255835054,-812.35,0.00012494,2]
[346733503,1735255835064,-500.0,0.00012494,2]
[346733504,1735255835074,-500.0,0.00012494,2]
[346733505,1735255835084,-2100.78,0.00012494,2]
[346733506,1735255835094,-500.0,0.00012494,2]
[346733507,1735255835104,-500.0,0.00012494,2]
[346733508,1735255835114,-2082.39,0.00012494,2]
[346733509,1735255835123,-500.0,0.00012494,2]
[346733510,1735255835134,-785.02,0.00012494,2]
[346733511,1735255835143,-500.0,0.00012494,2]
[346733512,1735255835153,-500.0,0.00012494,2]
[346733513,1735255835163,-500.0,0.00012494,2]
[346733514,1735255835172,-722.62,0.00012494,2]
[346733515,1735255835182,-2145.64,0.00012494,2]
[346733516,1735255835192,-500.0,0.00012494,2]
[346733517,1735255835202,-1004.44,0.00012494,2]
[346733518,1735255835211,-506.06169043,0.00012494,2]
[346733519,1735255835221,-500.0,0.00012494,2]
[346733520,1735255835231,-579.3,0.00012494,2]
[346733521,1735255835241,-500.0,0.00012494,2]
[346733522,1735255835250,-1119.43,0.00012494,2]
[346733523,1735255835260,-500.0,0.00012494,2]
[346733524,1735255835270,-500.0,0.00012494,2]
[346733525,1735255835280,-1888.31,0.00012494,2]
[346733526,1735255835291,-500.0,0.00012494,2]
[346733527,1735255835301,-500.0,0.00012494,2]
[346733528,1735255835455,-500.0,0.00012494,2]
[346733529,1735255835465,-500.0,0.00012494,2]
[346733530,1735255835475,-500.0,0.00012494,2]
[346733531,1735255835484,-500.0,0.00012494,2]
[346733532,1735255835494,-500.0,0.00012494,2]
[346733533,1735255835504,-500.0,0.00012494,2]
[346733534,1735255835513,-500.0,0.00012494,2]
[346733535,1735255835522,-206.77890673,0.00012494,2]
[346733536,1735255835532,-500.0,0.00012494,2]
[346733537,1735255835541,-500.0,0.00012494,2]
[346733538,1735255835550,-500.0,0.00012494,2]
[346733539,1735255835561,-500.0,0.00012494,2]
[346733540,1735255835571,-436.51921548,0.00012494,2]
[346733541,1735255835580,-2584.97,0.00012494,2]
[346733542,1735255835590,-615.05,0.00012494,2]
[346733543,1735255835599,-12407.69,0.00012494,2]
[346733544,1735255835609,-500.0,0.00012494,2]
[346733545,1735255835618,-500.0,0.00012494,2]
[346733546,1735255835629,-500.0,0.00012494,2]
[346733547,1735255835638,-931.2,0.00012494,2]
[346733548,1735255835647,-500.0,0.00012494,2]
[346733549,1735255835657,-500.0,0.00012494,2]
[346733550,1735255835666,-1025.57,0.00012494,2]
[346733551,1735255835676,-500.0,0.00012494,2]
[346733552,1735255835685,-500.0,0.00012494,2]
[346733553,1735255835695,-4922.37,0.00012494,2]
[346733554,1735255835705,-500.0,0.00012494,2]
[346733555,1735255835714,-501.02364153,0.00012494,2]
[346733556,1735255835724,-501.11365624,0.00012494,2]
[346733557,1735255835735,-500.0,0.00012494,2]
[346733558,1735255835744,-288.37750692,0.00012494,2]
[346733559,1735255835754,-1017.31,0.00012494,2]
[346733560,1735255835764,-2998.52,0.00012494,2]
[346733561,1735255835774,-501.20731562,0.00012494,2]
[346733562,1735255835783,-500.0,0.00012494,2]
[346733563,1735255835794,-501.58453353,0.00012494,2]
[346733564,1735255835804,-2889.81,0.00012494,2]
[346733565,1735255835818,-500.58028908,0.00012494,2]
[346733566,1735255835828,-1542.48,0.00012494,2]
[346733567,1735255835837,-1169.39,0.00012494,2]
[346733568,1735255835849,-500.0,0.00012494,2]
[346733569,1735255835859,-549.88,0.00012494,2]
[346733570,1735255835869,-501.14416044,0.00012494,2]
[346733572,1735255835878,-504.05335783,0.00012494,2]
[346733573,1735255835890,-1527.85,0.00012494,2]
[346733574,1735255835900,-412.35206287,0.00012494,2]
[346733575,1735255835910,-500.61826408,0.00012494,2]
[346733576,1735255835920,-5504.37,0.00012494,2]
[346733577,1735255835930,-503.52937704,0.00012494,2]
[346733578,1735255835942,-916.93,0.00012494,2]
[346733579,1735255835952,-501.31844379,0.00012494,2]
[346733580,1735255835961,-651.86,0.00012494,2]
[346733581,1735255835972,-501.46657176,0.00012494,2]
[346733582,1735255835982,-502.29013039,0.00012494,2]
[346733583,1735255835991,-500.0,0.00012494,2]
[346733584,1735255836001,-1076.9,0.00012494,2]
[346733585,1735255836011,-500.0,0.00012494,2]
[346733586,1735255836021,-500.0,0.00012494,2]
[346733587,1735255836031,-500.87536027,0.00012494,2]
[346733588,1735255836041,-166.05796942,0.00012494,2]
[346733589,1735255836051,-570.2,0.00012494,2]
[346733590,1735255836067,-1186.41,0.00012494,2]
[346733591,1735255836078,-450.67383195,0.00012494,2]
[346733592,1735255836087,-500.0,0.00012494,2]
[346733593,1735255836097,-1927.63,0.00012494,2]
[346733594,1735255836107,-513.05,0.00012494,2]
[346733595,1735255836116,-2109.66,0.00012494,2]
[346733596,1735255836126,-500.0,0.00012494,2]
[346733597,1735255836135,-348.00470177,0.00012494,2]
[346733599,1735255836145,-5866.98,0.00012494,2]
[346733600,1735255836154,-5875.83,0.00012494,2]
[346733601,1735255836164,-500.0,0.00012494,2]
[346733602,1735255836174,-1157.25,0.00012494,2]
[346733603,1735255836183,-2644.36,0.00012494,2]
[346733604,1735255836193,-3811.85,0.00012494,2]
[346733605,1735255836203,-505.12535507,0.00012494,2]
[346733606,1735255836212,-5398.65,0.00012494,2]
[346733607,1735255836222,-872.94,0.00012494,2]
[346733608,1735255836231,-1682.07,0.00012494,2]
[346733609,1735255836240,-2052.08,0.00012494,2]
[346733610,1735255836250,-13522.12,0.00012494,2]
[346733611,1735255836259,-1378.47,0.00012494,2]
[346733612,1735255836268,-512.62,0.00012494,2]
[346733613,1735255836278,-2064.84,0.00012494,2]
[346733614,1735255836287,-500.0,0.00012494,2]
[346733615,1735255836296,-3245.54,0.00012494,2]
[346733616,1735255836308,-1740.36,0.00012494,2]
[346733617,1735255836318,-2612.37,0.00012494,2]
[346733618,1735255836328,-2592.77,0.00012494,2]
[346733619,1735255836337,-500.0,0.00012494,2]
[346733620,1735255836347,-2015.09,0.00012494,2]
[346733621,1735255836356,-500.0,0.00012494,2]
[346733622,1735255836365,-1098.85,0.00012494,2]
[346733623,1735255836375,-695.29,0.00012494,2]
[346733624,1735255836384,-3307.64,0.00012494,2]
[346733625,1735255836393,-1089.7,0.00012494,2]
[346733626,1735255836403,-507.05599394,0.00012494,2]
[346733628,1735255836412,-1291.87,0.00012494,2]
[346733629,1735255836423,-10236.46,0.00012494,2]
[346733630,1735255836433,-6715.43,0.00012494,2]
[346733631,1735255836442,-502.00887132,0.00012494,2]
[346733632,1735255836452,-1824.94,0.00012494,2]
[346733633,1735255836461,-500.0,0.00012494,2]
[346733634,1735255836471,-3866.1,0.00012494,2]
[346733635,1735255836480,-18623.42,0.00012494,2]
[346733636,1735255836490,-154.669237,0.00012494,2]
[346733637,1735255836499,-154.936045,0.00012494,2]
[346733638,1735255836508,-19435.66,0.00012494,2]
[346733639,1735255836518,-897.15224,0.00012494,2]
[346733640,1735255836527,-1608.34,0.00012494,2]
[346733641,1735255836537,-3607.61,0.00012494,2]
[346733642,1735255836547,-3607.61,0.00012494,2]
[346733643,1735255836561,-1409.54,0.00012494,2]
[346733644,1735255836570,-449.419804,0.00012494,2]
[346733645,1735255836580,-500.0,0.00012494,2]
[346733646,1735255836589,-507.60488755,0.00012494,2]
[346733647,1735255836599,-500.0,0.00012494,2]
[346733648,1735255836609,-10251.79,0.00012494,2]
[346733649,1735255836619,-500.0,0.00012494,2]
[346733650,1735255836629,-1233.54,0.00012494,2]
[346733651,1735255836639,-1662.88,0.00012494,2]
[346733652,1735255836648,-1836.94,0.00012494,2]
[346733653,1735255836658,-305.23550254,0.00012494,2]
[346733654,1735255836667,-500.0,0.00012494,2]
[346733656,1735255836676,-510.09177247,0.00012494,2]
[346733657,1735255836686,-575.20098905,0.00012494,2]
[346733658,1735255836696,-3104.95,0.00012494,2]
[346733659,1735255836706,-500.0,0.00012494,2]
[346733660,1735255836715,-2409.95,0.00012494,2]
[346733661,1735255836725,-500.0,0.00012494,2]
[346733662,1735255836735,-500.0,0.00012495,2]
[346733663,1735255836744,-500.0,0.00012495,2]
[346733664,1735255836754,-507.20119856,0.00012495,2]
[346733665,1735255836763,-555.68,0.00012495,2]
[346733666,1735255836774,-500.0,0.00012495,2]
[346733667,1735255836783,-1050.9,0.00012495,2]
[346733668,1735255836793,-936.16,0.00012495,2]
[346733669,1735255836803,-500.0,0.00012495,2]
[346733670,1735255836816,-500.0,0.00012495,2]
[346733671,1735255836825,-501.55106925,0.00012495,2]
[346733672,1735255836835,-500.0,0.00012495,2]
[346733673,1735255836844,-500.0,0.00012495,2]
[346733674,1735255836853,-500.0,0.00012495,2]
[346733675,1735255836863,-500.0,0.00012495,2]
[346733676,1735255836873,-500.0,0.00012495,2]
[346733677,1735255836883,-500.0,0.00012495,2]
[346733678,1735255836895,-500.0,0.00012495,2]
[346733679,1735255836905,-500.0,0.00012495,2]
[346733680,1735255836914,-500.0,0.00012495,2]
[346733681,1735255836924,-500.0,0.00012495,2]
[346733682,1735255836933,-500.0,0.00012495,2]
[346733683,1735255836942,-500.0,0.00012495,2]
[346733685,1735255836951,-724.97,0.00012495,2]
[346733686,1735255836961,-500.0,0.00012495,2]
[346733687,1735255836971,-500.0,0.00012495,2]
[346733688,1735255836980,-500.0,0.00012495,2]
[346733689,1735255836990,-500.0,0.00012495,2]
[346733690,1735255836999,-500.0,0.00012495,2]
[346733691,1735255837008,-501.389457,0.00012495,2]
[346733692,1735255837018,-500.0,0.00012495,2]
[346733693,1735255837027,-500.0,0.00012495,2]
[346733694,1735255837037,-500.0,0.00012495,2]
[346733695,1735255837046,-500.0,0.00012495,2]
[346733696,1735255837056,-501.36249859,0.00012495,2]
[346733697,1735255837068,-500.0,0.00012495,2]
[346733698,1735255837077,-500.0,0.00012495,2]
[346733699,1735255837087,-500.0,0.00012495,2]
[346733700,1735255837096,-628.9,0.00012495,2]
[346733701,1735255837106,-500.0,0.00012495,2]
[346733702,1735255837116,-500.0,0.00012495,2]
[346733703,1735255837126,-518.60553237,0.00012495,2]
[346733704,1735255837135,-965.56,0.00012495,2]
[346733705,1735255837145,-500.0,0.00012495,2]
[346733706,1735255837155,-500.0,0.00012495,2]
[346733707,1735255837164,-500.0,0.00012495,2]
[346733708,1735255837174,-872.4,0.00012495,2]
[346733709,1735255837183,-500.0,0.00012495,2]
[346733710,1735255837194,-500.0,0.00012495,2]
[346733711,1735255837203,-500.0,0.00012495,2]
[346733712,1735255837213,-500.0,0.00012495,2]
[346733713,1735255837222,-500.0,0.00012495,2]
[346733714,1735255837231,-1029.87,0.00012495,2]
[346733715,1735255837241,-500.0,0.00012495,2]
[346733716,1735255837250,-500.0,0.00012495,2]
[346733717,1735255837259,-500.0,0.00012495,2]
[346733718,1735255837269,-500.0,0.00012495,2]
[346733719,1735255837279,-500.0,0.00012495,2]
[346733720,1735255837289,-500.0,0.00012495,2]
[346733721,1735255837298,-564.58,0.00012495,2]
[346733722,1735255837310,-500.0,0.00012495,2]
[346733723,1735255837319,-500.0,0.00012495,2]
[346733724,1735255837329,-500.0,0.00012495,2]
[346733725,1735255837339,-500.0,0.00012495,2]
[346733726,1735255837348,-500.0,0.00012495,2]
[346733727,1735255837358,-500.0,0.00012495,2]
[346733728,1735255837367,-500.0,0.00012495,2]
[346733729,1735255837376,-500.0,0.00012495,2]
[346733730,1735255837386,-500.0,0.00012495,2]
[346733731,1735255837395,-500.0,0.00012495,2]
[346733732,1735255837405,-500.0,0.00012495,2]
[346733733,1735255837414,-500.0,0.00012495,2]
[346733734,1735255837556,-500.0,0.00012495,2]
[346733735,1735255837568,-500.0,0.00012495,2]
[346733736,1735255837578,-500.0,0.00012495,2]
[346733737,1735255837587,-500.0,0.00012495,2]
[346733738,1735255837598,-812.39,0.00012495,2]
[346733740,1735255837608,-500.0,0.00012495,2]
[346733742,1735255837618,-500.0,0.00012495,2]
[346733745,1735255837628,-500.0,0.00012495,2]
[346733748,1735255837638,-500.0,0.00012495,2]
[346733750,1735255837647,-500.0,0.00012495,2]
[346733752,1735255837657,-500.0,0.00012495,2]
[346733754,1735255837666,-500.0,0.00012495,2]
[346733756,1735255837675,-500.0,0.00012495,2]
[346733758,1735255837685,-500.0,0.00012495,2]
[346733760,1735255837694,-501.69647689,0.00012495,2]
[346733762,1735255837704,-500.0,0.00012495,2]
[346733764,1735255837713,-500.0,0.00012495,2]
[346733766,1735255837723,-500.0,0.00012495,2]
[346733768,1735255837732,-500.0,0.00012495,2]
[346733770,1735255837741,-500.0,0.00012495,2]
[346733772,1735255837751,-500.0,0.00012495,2]
[346733774,1735255837761,-970.44,0.00012495,2]
[346733776,1735255837771,-500.0,0.00012495,2]
[346733778,1735255837781,-500.0,0.00012495,2]
[346733780,1735255837791,-500.0,0.00012495,2]
[346733782,1735255837801,-502.19038951,0.00012495,2]
[346733784,1735255837812,-500.0,0.00012495,2]
[346733786,1735255837821,-500.0,0.00012495,2]
[346733789,1735255837831,-500.0,0.00012495,2]
[346733791,1735255837841,-502.34986384,0.00012495,2]
[346733793,1735255837851,-500.0,0.00012495,2]
[346733795,1735255837860,-500.0,0.00012495,2]
[346733797,1735255837870,-500.0,0.00012495,2]
[346733799,1735255837880,-500.0,0.00012495,2]
[346733801,1735255837893,-500.0,0.00012495,2]
[346733803,1735255837903,-500.0,0.00012495,2]
[346733805,1735255837913,-500.0,0.00012495,2]
[346733807,1735255837923,-500.0,0.00012495,2]
[346733809,1735255837934,-500.0,0.00012495,2]
[346733811,1735255837944,-500.0,0.00012495,2]
[346733813,1735255837954,-500.0,0.00012495,2]
[346733815,1735255837964,-814.37,0.00012495,2]
[346733816,1735255837975,-500.0,0.00012495,2]
[346733817,1735255837988,-500.0,0.00012495,2]
[346733818,1735255837997,-500.0,0.00012495,2]
[346733819,1735255838007,-500.0,0.00012495,2]
[346733820,1735255838016,-500.0,0.00012495,2]
[346733821,1735255838026,-500.0,0.00012495,2]
[346733822,1735255838035,-500.0,0.00012495,2]
[346733823,1735255838045,-500.0,0.00012495,2]
[346733824,1735255838055,-500.0,0.00012495,2]
[346733825,1735255838066,-571.47,0.00012495,2]
[346733826,1735255838075,-500.0,0.00012495,2]
[346733827,1735255838085,-500.0,0.00012495,2]
[346733828,1735255838094,-501.45335341,0.00012495,2]
[346733829,1735255838104,-500.0,0.00012495,2]
[346733830,1735255838114,-500.0,0.00012495,2]
[346733831,1735255838124,-500.0,0.00012495,2]
[346733833,1735255838133,-500.0,0.00012495,2]
[346733834,1735255838143,-500.72871095,0.00012495,2]
[346733835,1735255838152,-500.0,0.00012495,2]
[346733836,1735255838162,-501.05645056,0.00012495,2]
[346733837,1735255838171,-500.0,0.00012495,2]
[346733838,1735255838182,-1008.71,0.00012495,2]
[346733839,1735255838191,-501.39948086,0.00012495,2]
[346733840,1735255838201,-500.0,0.00012495,2]
[346733841,1735255838211,-500.0,0.00012495,2]
[346733842,1735255838220,-500.8965471,0.00012495,2]
[346733843,1735255838229,-500.0,0.00012495,2]
[346733844,1735255838240,-500.0,0.00012495,2]
[346733845,1735255838250,-500.0,0.00012495,2]
[346733847,1735255838259,-500.0,0.00012495,2]
[346733848,1735255838267,-500.0,0.00012495,2]
[346733850,1735255838277,-500.0,0.00012495,2]
[346733851,1735255838286,-500.0,0.00012495,2]
[346733852,1735255838296,-500.0,0.00012495,2]
[346733853,1735255838305,-500.0,0.00012495,2]
[346733854,1735255838316,-500.0,0.00012495,2]
[346733855,1735255838326,-500.0,0.00012495,2]
[346733856,1735255838335,-2109.32,0.00012495,2]
[346733857,1735255838345,-500.0,0.00012495,2]
[346733858,1735255838354,-500.0,0.00012495,2]
[346733859,1735255838363,-500.54954061,0.00012495,2]
[346733860,1735255838373,-500.0,0.00012495,2]
[346733861,1735255838382,-500.0,0.00012495,2]
[346733862,1735255838392,-500.0,0.00012495,2]
[346733863,1735255838401,-500.70831614,0.00012495,2]
[346733864,1735255838410,-1654.46,0.00012495,2]
[346733865,1735255838420,-500.0,0.00012495,2]
[346733866,1735255838429,-500.0,0.00012495,2]
[346733867,1735255838438,-500.0,0.00012495,2]
[346733868,1735255838448,-500.0,0.00012495,2]
[346733869,1735255838457,-500.0,0.00012495,2]
[346733870,1735255838469,-525.97,0.00012495,2]
[346733871,1735255838490,-500.0,0.00012495,2]
[346733872,1735255838507,-1110.63,0.00012495,2]
[346733873,1735255838525,-500.0,0.00012495,2]
[346733874,1735255838544,-500.0,0.00012495,2]
[346733875,1735255838561,-500.0,0.00012495,2]
[346733876,1735255838579,-500.0,0.00012495,2]
[346733877,1735255838599,-500.0,0.00012495,2]
[346733878,1735255838618,-500.0,0.00012495,2]
[346733879,1735255838635,-500.0,0.00012495,2]
[346733880,1735255838655,-960.8,0.00012495,2]
[346733881,1735255838671,-500.0,0.00012495,2]
[346733882,1735255838684,-500.0,0.00012495,2]
[346733883,1735255838703,-500.0,0.00012495,2]
[346733884,1735255838718,-500.13700209,0.00012495,2]
[346733885,1735255838736,-2167.76,0.00012495,2]
[346733886,1735255838749,-666.88,0.00012495,2]
[346733887,1735255838764,-500.5607937,0.00012495,2]
[346733888,1735255838779,-500.0,0.00012495,2]
[346733889,1735255838794,-461.70981968,0.00012495,2]
[346733890,1735255838811,-500.0,0.00012495,2]
[346733891,1735255838827,-508.81,0.00012495,2]
[346733892,1735255838847,-500.0,0.00012495,2]
[346733893,1735255838861,-1511.99,0.00012495,2]
[346733894,1735255838876,-500.0,0.00012495,2]
[346733896,1735255838892,-500.0,0.00012495,2]
[346733898,1735255838908,-500.0,0.00012495,2]
[346733899,1735255838922,-500.0,0.00012495,2]
[346733900,1735255838937,-501.28591555,0.00012495,2]
[346733902,1735255838952,-500.0,0.00012495,2]
[346733903,1735255838967,-1121.76,0.00012495,2]
[346733904,1735255838983,-500.0,0.00012495,2]
[346733905,1735255838998,-500.0,0.00012495,2]
[346733906,1735255839013,-500.34910232,0.00012495,2]
[346733907,1735255839028,-775.14,0.00012495,2]
[346733908,1735255839043,-500.0,0.00012495,2]
[346733909,1735255839060,-500.0,0.00012495,2]
[346733910,1735255839076,-500.0,0.00012495,2]
[346733911,1735255839091,-500.0,0.00012495,2]
[346733912,1735255839107,-500.0,0.00012495,2]
[346733913,1735255839123,-500.0,0.00012495,2]
[346733914,1735255839138,-500.90652733,0.00012495,2]
[346733915,1735255839154,-1225.92,0.00012495,2]
[346733916,1735255839170,-500.0,0.00012495,2]
[346733917,1735255839185,-500.0,0.00012495,2]
[346733918,1735255839200,-551.0,0.00012495,2]
[346733919,1735255839215,-500.36387742,0.00012495,2]
[346733920,1735255839230,-619.95,0.00012495,2]
[346733921,1735255839247,-1112.94,0.00012495,2]
[346733922,1735255839262,-500.0,0.00012495,2]
[346733923,1735255839278,-500.0,0.00012495,2]
[346733924,1735255839293,-500.0,0.00012495,2]
[346733925,1735255839309,-500.0,0.00012495,2]
[346733926,1735255839324,-501.23489736,0.00012495,2]
[346733927,1735255839341,-560.4,0.00012495,2]
[346733928,1735255839357,-500.0,0.00012495,2]
[346733929,1735255839373,-500.0,0.00012495,2]
[346733930,1735255839388,-500.0,0.00012495,2]
[346733931,1735255839404,-500.0,0.00012495,2]
[346733932,1735255839419,-869.66,0.00012495,2]
[346733933,1735255839434,-500.0,0.00012495,2]
[346733934,1735255839449,-500.0,0.00012495,2]
[346733935,1735255839464,-1121.39,0.00012495,2]
[346733936,1735255839480,-1335.58,0.00012495,2]
[346733937,1735255839495,-500.0,0.00012495,2]
[346733938,1735255839511,-500.0,0.00012495,2]
[346733939,1735255839527,-500.0,0.00012495,2]
[346733940,1735255839542,-500.0,0.00012495,2]
[346733942,1735255839557,-500.0,0.00012495,2]
[346733943,1735255839573,-500.0,0.00012495,2]
[346733944,1735255839588,-500.0,0.00012495,2]
[346733945,1735255839604,-543.49151604,0.00012495,2]
[346733946,1735255839619,-500.0,0.00012495,2]
[346733947,1735255839633,-500.0,0.00012495,2]
[346733948,1735255839648,-500.0,0.00012495,2]
[346733949,1735255839662,-354.64732952,0.00012495,2]
[346733950,1735255839677,-500.0,0.00012495,2]
[346733951,1735255839692,-500.0,0.00012495,2]
[346733953,1735255839706,-500.0,0.00012495,2]
[346733954,1735255839720,-500.0,0.00012495,2]
[346733955,1735255839735,-1932.83,0.00012495,2]
[346733956,1735255839750,-527.64264665,0.00012495,2]
[346733957,1735255839765,-500.0,0.00012495,2]
[346733958,1735255839780,-500.0,0.00012495,2]
[346733959,1735255839794,-500.0,0.00012495,2]
[346733960,1735255839810,-1742.18,0.00012495,2]
[346733962,1735255839824,-500.0,0.00012495,2]
[346733963,1735255839838,-500.0,0.00012495,2]
[346733964,1735255839855,-500.0,0.00012495,2]
[346733965,1735255839869,-500.0,0.00012495,2]
[346733966,1735255839885,-500.0,0.00012495,2]
[346733967,1735255839903,-500.0,0.00012495,2]
[346733971,1735255840134,-500.0,0.00012495,2]
[346733973,1735255840144,-470.0,0.00012495,2]
[346733975,1735255840153,-500.0,0.00012495,2]
[346733977,1735255840163,-920.87,0.00012495,2]
[346733979,1735255840172,-500.0,0.00012495,2]
[346733981,1735255840181,-500.0,0.00012495,2]
[346733983,1735255840190,-500.0,0.00012495,2]
[346733985,1735255840199,-500.0,0.00012495,2]
[346733987,1735255840208,-500.0,0.00012495,2]
[346733989,1735255840217,-500.0,0.00012495,2]
[346733991,1735255840226,-500.0,0.00012495,2]
[346733993,1735255840235,-500.0,0.00012495,2]
[346733995,1735255840244,-1243.21,0.00012495,2]
[346733997,1735255840253,-1523.55,0.00012495,2]
[346733999,1735255840263,-536.66831849,0.00012495,2]
[346734001,1735255840271,-500.0,0.00012495,2]
[346734003,1735255840281,-500.0,0.00012495,2]
[346734005,1735255840290,-500.0,0.00012495,2]
[346734007,1735255840299,-500.87129415,0.00012495,2]
[346734009,1735255840308,-990.7,0.00012495,2]
[346734011,1735255840319,-500.0,0.00012495,2]
[346734013,1735255840328,-750.15,0.00012495,2]
[346734015,1735255840337,-500.0,0.00012495,2]
[346734017,1735255840346,-1672.87,0.00012495,2]
[346734019,1735255840357,-500.0,0.00012495,2]
[346734021,1735255840366,-500.0,0.00012495,2]
[346734023,1735255840375,-500.0,0.00012495,2]
[346734025,1735255840384,-500.0,0.00012495,2]
[346734026,1735255840394,-1088.5,0.00012495,2]
[346734028,1735255840403,-500.0,0.00012495,2]
[346734030,1735255840412,-1164.24,0.00012495,2]
[346734033,1735255840422,-2524.92,0.00012495,2]
[346734034,1735255840431,-955.78,0.00012495,2]
[346734036,1735255840441,-500.0,0.00012495,2]
[346734038,1735255840450,-500.0,0.00012495,2]
[346734040,1735255840459,-617.87,0.00012495,2]
[346734042,1735255840469,-500.0,0.00012495,2]
[346734044,1735255840478,-659.66,0.00012495,2]
[346734046,1735255840488,-500.0,0.00012495,2]
[346734048,1735255840497,-500.0,0.00012495,2]
[346734050,1735255840506,-500.0,0.00012495,2]
[346734052,1735255840516,-500.0,0.00012495,2]
[346734054,1735255840525,-500.0,0.00012495,2]
[346734056,1735255840534,-1742.58,0.00012495,2]
[346734058,1735255840543,-622.45,0.00012495,2]
[346734060,1735255840552,-661.55,0.00012495,2]
[346734062,1735255840563,-500.0,0.00012495,2]
[346734064,1735255840572,-500.0,0.00012495,2]
[346734066,1735255840581,-500.0,0.00012495,2]
[346734068,1735255840591,-500.0,0.00012495,2]
[346734070,1735255840600,-500.0,0.00012495,2]
[346734072,1735255840608,-1077.08,0.00012495,2]
[346734074,1735255840618,-500.0,0.00012495,2]
[346734076,1735255840627,-500.0,0.00012495,2]
[346734078,1735255840636,-500.0,0.00012495,2]
[346734080,1735255840645,-500.0,0.00012495,2]
[346734081,1735255840654,-500.0,0.00012495,2]
[346734083,1735255840662,-500.0,0.00012495,2]
[346734084,1735255840673,-500.0,0.00012495,2]
[346734086,1735255840683,-500.0,0.00012495,2]
[346734088,1735255840694,-189.70000319,0.00012495,2]
[346734091,1735255840706,-500.0,0.00012495,2]
[346734092,1735255840716,-500.0,0.00012495,2]
[346734094,1735255840726,-1042.0,0.00012495,2]
[346734096,1735255840735,-1042.0,0.00012495,2]
[346734098,1735255840744,-1558.78,0.00012495,2]
[346734100,1735255840753,-500.0,0.00012495,2]
[346734102,1735255840763,-500.0,0.00012495,2]
[346734104,1735255840772,-500.0,0.00012495,2]
[346734106,1735255840781,-500.0,0.00012495,2]
[346734108,1735255840791,-500.0,0.00012495,2]
[346734110,1735255840800,-500.0,0.00012495,2]
[346734112,1735255840810,-500.0,0.00012495,2]
[346734114,1735255840819,-970.48,0.00012495,2]
[346734116,1735255840828,-500.0,0.00012495,2]
[346734118,1735255840838,-500.0,0.00012495,2]
[346734120,1735255840847,-500.0,0.00012495,2]
[346734122,1735255840857,-500.0,0.00012495,2]
[346734124,1735255840866,-500.0,0.00012495,2]
[346734125,1735255840877,-1104.48,0.00012495,2]
[346734126,1735255840889,-500.0,0.00012495,2]